fUSD/lending_fUSD_20241104
["ID","MTS","AMOUNT","RATE_DAILY","PERIOD"]
[341302381,1730746257106,-500.0,0.00034246,2]
[341302382,1730746257115,-500.0,0.00034246,2]
[341302383,1730746257125,-500.0,0.00034246,2]
[341302384,1730746257135,-616.04,0.00034246,2]
[341302385,1730746257145,-472.85122837,0.00034246,2]
[341302386,1730746257154,-500.0,0.00034246,2]
[341302387,1730746257163,-500.0,0.00034246,2]
[341302388,1730746257173,-320.68,0.00034246,2]
[341302389,1730746257183,-500.0,0.00034246,2]
[341302390,1730746257192,-249.52346454,0.00034246,2]
[341302391,1730746257203,-500.0,0.00034246,2]
[341302392,1730746257212,-382.84,0.00034246,2]
[341302393,1730746257223,-500.0,0.00034246,2]
[341302394,1730746257233,-593.28,0.00034246,2]
[341302395,1730746257243,-500.0,0.00034246,2]
[341302396,1730746257252,-500.0,0.00034246,2]
[341302397,1730746257263,-500.0,0.00034246,2]
[341302398,1730746257272,-500.0,0.00034246,2]
[341302399,1730746257285,-500.0,0.00034246,2]
[341302400,1730746257295,-597.05233062,0.00034246,2]
[341302401,1730746257306,-500.0,0.00034246,2]
[341302402,1730746257316,-627.80137062,0.00034246,2]
[341302403,1730746257326,-775.76,0.00034246,2]
[341302404,1730746257336,-500.0,0.00034246,2]
[341302405,1730746257345,-500.0,0.00034246,2]
[341302406,1730746257355,-164.43,0.00034246,2]
[341302407,1730746257365,-500.0,0.00034246,2]
[341302408,1730746257375,-500.0,0.00034246,2]
[341302409,1730746257385,-500.0,0.00034246,2]
[341302410,1730746257395,-500.0,0.00034246,2]
[341302411,1730746257404,-1789.59,0.00034246,2]
[341302412,1730746257414,-500.0,0.00034246,2]
[341302413,1730746257425,-500.0,0.00034246,2]
[341302414,1730746257435,-500.0,0.00034246,2]
[341302415,1730746257445,-500.0,0.00034246,2]
[341302416,1730746257456,-500.0,0.00034246,2]
[341302417,1730746257466,-500.0,0.00034246,2]
[341302418,1730746257476,-727.78,0.00034246,2]
[341302419,1730746257486,-500.0,0.00034246,2]
[341302420,1730746257496,-1276.2,0.00034246,2]
[341302421,1730746257507,-500.0,0.00034246,2]
[341302422,1730746257517,-500.0,0.00034246,2]
[341302423,1730746257527,-500.0,0.00034246,2]
[341302424,1730746257537,-500.0,0.00034246,2]
[341302425,1730746257547,-500.0,0.00034246,2]
[341302426,1730746257557,-500.0,0.00034246,2]
[341302427,1730746257567,-500.0,0.00034246,2]
[341302428,1730746257578,-500.0,0.00034246,2]
[341302429,1730746257588,-500.0,0.00034246,2]
[341302430,1730746257598,-500.0,0.00034246,2]
[341302431,1730746257608,-500.0,0.00034246,2]
[341302432,1730746257617,-500.0,0.00034246,2]
[341302433,1730746257627,-604.93,0.00034246,2]
[341302434,1730746257637,-500.0,0.00034246,2]
[341302435,1730746257647,-500.0,0.00034246,2]
[341302436,1730746257657,-500.0,0.0003452,2]
[341302437,1730746257667,-500.0,0.0003452,2]
[341302438,1730746257677,-500.0,0.0003452,2]
[341302439,1730746257687,-500.0,0.0003452,2]
[341302440,1730746257698,-500.0,0.0003452,2]
[341302441,1730746257708,-500.0,0.0003452,2]
[341302442,1730746257719,-500.0,0.0003452,2]
[341302443,1730746257729,-500.0,0.0003452,2]
[341302444,1730746257739,-500.0,0.0003452,2]
[341302445,1730746257749,-500.0,0.0003452,2]
[341302446,1730746257759,-500.0,0.0003452,2]
[341302447,1730746257769,-500.0,0.0003452,2]
[341302448,1730746257779,-257.67838423,0.0003452,2]
[341302449,1730746257788,-547.6916,0.0003452,2]
[341302450,1730746257798,-464.35,0.0003452,2]
[341302451,1730746257809,-500.0,0.0003452,2]
[341302452,1730746257819,-775.76,0.0003452,2]
[341302453,1730746257828,-500.0,0.0003452,2]
[341302454,1730746257838,-438.94,0.0003452,2]
[341302455,1730746257848,-627.04,0.0003452,2]
[341302456,1730746257858,-500.0,0.0003452,2]
[341302457,1730746257868,-500.0,0.0003452,2]
[341302458,1730746257878,-369.21077927,0.0003452,2]
[341302459,1730746257888,-1789.59,0.0003452,2]
[341302460,1730746257898,-539.02421881,0.0003452,2]
[341302461,1730746257908,-500.0,0.0003452,2]
[341302462,1730746257918,-514.5773902,0.0003452,2]
[341302463,1730746257929,-500.0,0.0003452,2]
[341302464,1730746257939,-224.69,0.0003452,2]
[341302465,1730746257949,-500.0,0.0003452,2]
[341302466,1730746257962,-727.78,0.0003452,2]
[341302467,1730746257978,-534.68,0.0003452,2]
[341302468,1730746257988,-1276.2,0.0003452,2]
[341302469,1730746257998,-356.57,0.0003452,2]
[341302470,1730746258008,-302.31479483,0.0003452,2]
[341302471,1730746258018,-500.0,0.0003452,2]
[341302472,1730746258028,-500.0,0.0003452,2]
[341302473,1730746258037,-500.0,0.0003452,2]
[341302474,1730746258047,-500.0,0.0003452,2]
[341302475,1730746258057,-500.0,0.0003452,2]
[341302476,1730746258067,-241.25,0.0003452,2]
[341302477,1730746258077,-500.0,0.0003452,2]
[341302478,1730746258087,-500.0,0.0003452,2]
[341302479,1730746258097,-500.0,0.0003452,2]
[341302480,1730746258106,-604.93,0.0003452,2]
[341302481,1730746258116,-158.93186543,0.0003452,2]
[341302482,1730746258134,-341.06813457,0.0003452,2]
[341302483,1730746258144,-366.35186543,0.0003452,2]
[341302484,1730746258156,-133.64813457,0.0003452,2]
[341302485,1730746258166,-679.41,0.00034531,2]
[341302486,1730746258176,-500.0,0.00034794,2]
[341302487,1730746258185,-383.70240998,0.00034794,2]
[341302488,1730746258194,-500.0,0.00034794,2]
[341302489,1730746258210,-500.0,0.00034794,2]
[341302490,1730746258221,-500.0,0.00034794,2]
[341302491,1730746258234,-500.0,0.00034794,2]
[341302492,1730746258244,-500.0,0.00034794,2]
[341302493,1730746258254,-134.56590004,0.00034794,2]
[341302494,1730746258272,-365.43409996,0.00034794,2]
[341302495,1730746258282,-500.0,0.00034794,2]
[341302496,1730746258292,-500.0,0.00034794,2]
[341302497,1730746258303,-500.0,0.00034794,2]
[341302498,1730746258313,-500.0,0.00034794,2]
[341302499,1730746258324,-500.0,0.00034794,2]
[341302500,1730746258334,-775.76,0.00034794,2]
[341302501,1730746258344,-500.0,0.00034794,2]
[341302502,1730746258354,-500.0,0.00034794,2]
[341302503,1730746258363,-500.0,0.00034794,2]
[341302504,1730746258373,-1789.59,0.00034794,2]
[341302505,1730746258383,-500.0,0.00034794,2]
[341302506,1730746258393,-230.73780153,0.00034794,2]
[341302507,1730746258403,-150.55,0.00034794,2]
[341302508,1730746258413,-727.78,0.00034794,2]
[341302509,1730746258422,-1276.2,0.00034794,2]
[341302510,1730746258431,-566.3,0.00034794,2]
[341302511,1730746258441,-246.62,0.00034794,2]
[341302512,1730746258452,-500.0,0.00034794,2]
[341302513,1730746258462,-237.25,0.00034794,2]
[341302514,1730746258473,-222.8,0.00034794,2]
[341302515,1730746258482,-500.0,0.00034794,2]
[341302516,1730746258494,-308.52,0.00034794,2]
[341302517,1730746258504,-604.93,0.00034794,2]
[341302518,1730746258514,-500.0,0.00034794,2]
[341302519,1730746258524,-500.0,0.00034794,2]
[341302520,1730746258534,-1682.9275419,0.0003494,15]
[341302521,1730746258545,-600.0,0.00035,2]
[341302522,1730746258555,-7284.06284345,0.00035,36]
[341302523,1730746258564,-500.0,0.00035068,2]
[341302524,1730746258574,-500.0,0.00035068,2]
[341302525,1730746258584,-500.0,0.00035068,2]
[341302526,1730746258594,-500.0,0.00035068,2]
[341302527,1730746258604,-500.0,0.00035068,2]
[341302528,1730746258615,-500.0,0.00035068,2]
[341302529,1730746258624,-500.0,0.00035068,2]
[341302530,1730746258634,-500.0,0.00035068,2]
[341302531,1730746258644,-500.0,0.00035068,2]
[341302532,1730746258653,-500.0,0.00035068,2]
[341302533,1730746258663,-500.0,0.00035068,2]
[341302534,1730746258674,-500.0,0.00035068,2]
[341302535,1730746258684,-775.76,0.00035068,2]
[341302536,1730746258694,-500.0,0.00035068,2]
[341302537,1730746258704,-500.0,0.00035068,2]
[341302538,1730746258714,-1789.59,0.00035068,2]
[341302539,1730746258723,-500.0,0.00035068,2]
[341302540,1730746258733,-727.78,0.00035068,2]
[341302541,1730746258743,-1276.2,0.00035068,2]
[341302542,1730746258753,-500.0,0.00035068,2]
[341302543,1730746258763,-500.0,0.00035068,2]
[341302544,1730746258772,-604.93,0.00035068,2]
[341302545,1730746258782,-500.0,0.00035068,2]
[341302546,1730746258792,-500.0,0.00035068,2]
[341302547,1730746258802,-160.55038261,0.00035291,2]
[341302548,1730746258812,-500.0,0.00035342,2]
[341302549,1730746258822,-500.0,0.00035342,2]
[341302550,1730746258832,-500.0,0.00035342,2]
[341302551,1730746258842,-500.0,0.00035342,2]
[341302552,1730746258852,-500.0,0.00035342,2]
[341302553,1730746258862,-500.0,0.00035342,2]
[341302554,1730746258872,-500.0,0.00035342,2]
[341302555,1730746258882,-500.0,0.00035342,2]
[341302556,1730746258892,-218.79265948,0.00035342,2]
[341302557,1730746258902,-500.0,0.00035342,2]
[341302558,1730746258912,-500.0,0.00035342,2]
[341302559,1730746258922,-500.0,0.00035342,2]
[341302560,1730746258932,-775.76,0.00035342,2]
[341302561,1730746258942,-500.0,0.00035342,2]
[341302562,1730746258951,-500.0,0.00035342,2]
[341302563,1730746258961,-1789.59,0.00035342,2]
[341302564,1730746258971,-500.0,0.00035342,2]
[341302565,1730746258981,-727.78,0.00035342,2]
[341302566,1730746258991,-1276.2,0.00035342,2]
[341302567,1730746259001,-500.0,0.00035342,2]
[341302568,1730746259013,-500.0,0.00035342,2]
[341302569,1730746259023,-604.93,0.00035342,2]
[341302570,1730746259034,-183.0,0.000355,5]
[341302571,1730746259044,-500.0,0.00035616,2]
[341302572,1730746259054,-500.0,0.00035616,2]
[341302573,1730746259065,-500.0,0.00035616,2]
[341302574,1730746259075,-500.0,0.00035616,2]
[341302575,1730746259085,-500.0,0.00035616,2]
[341302576,1730746259094,-256.33,0.00035616,2]
[341302577,1730746259106,-500.0,0.00035616,2]
[341302578,1730746259116,-500.0,0.00035616,2]
[341302579,1730746259127,-334.36351375,0.00035616,2]
[341302580,1730746259136,-500.0,0.00035616,2]
[341302581,1730746259147,-500.0,0.00035616,2]
[341302582,1730746259157,-775.76,0.00035616,2]
[341302583,1730746259166,-311.5,0.00035616,2]
[341302584,1730746259176,-500.0,0.00035616,2]
[341302585,1730746259187,-1789.59,0.00035616,2]
[341302586,1730746259196,-637.05,0.00035616,2]
[341302587,1730746259207,-727.78,0.00035616,2]
[341302588,1730746259216,-1276.2,0.00035616,2]
[341302589,1730746259230,-500.0,0.00035616,2]
[341302590,1730746259239,-500.0,0.00035616,2]
[341302591,1730746259251,-604.93,0.00035616,2]
[341302592,1730746259262,-157.42,0.00035616,2]
[341302593,1730746259273,-555.565,0.00035889,43]
[341302594,1730746259283,-500.0,0.0003589,2]
[341302595,1730746259292,-498.23237481,0.0003589,2]
[341302596,1730746259303,-500.0,0.0003589,2]
[341302597,1730746259314,-500.0,0.0003589,2]
[341302598,1730746259325,-500.0,0.0003589,2]
[341302599,1730746259335,-500.0,0.0003589,2]
[341302600,1730746259344,-500.0,0.0003589,2]
[341302601,1730746259354,-500.0,0.0003589,2]
[341302602,1730746259366,-500.0,0.0003589,2]
[341302603,1730746259375,-775.76,0.0003589,2]
[341302604,1730746259384,-500.0,0.0003589,2]
[341302605,1730746259394,-1789.59,0.0003589,2]
[341302606,1730746259403,-727.78,0.0003589,2]
[341302607,1730746259413,-1276.2,0.0003589,2]
[341302608,1730746259423,-500.0,0.0003589,2]
[341302609,1730746259432,-500.0,0.0003589,2]
[341302610,1730746259442,-500.0,0.00036164,2]
[341302611,1730746259452,-296.86760599,0.00036164,2]
[341302612,1730746259462,-500.0,0.00036164,2]
[341302613,1730746259472,-500.0,0.00036164,2]
[341302614,1730746259482,-501.5631877,0.00036164,2]
[341302615,1730746259492,-500.0,0.00036164,2]
[341302616,1730746259502,-500.0,0.00036164,2]
[341302617,1730746259512,-500.0,0.00036164,2]
[341302618,1730746259521,-775.76,0.00036164,2]
[341302619,1730746259531,-500.0,0.00036164,2]
[341302620,1730746259541,-1789.59,0.00036164,2]
[341302621,1730746259551,-727.78,0.00036164,2]
[341302622,1730746259560,-1276.2,0.00036164,2]
[341302623,1730746259570,-522.57386265,0.00036164,2]
[341302624,1730746259579,-500.0,0.00036164,2]
[341302625,1730746259589,-151.97,0.00036207,120]
[341302626,1730746259599,-153.27,0.000364,31]
[341302627,1730746259608,-500.0,0.00036438,2]
[341302628,1730746259619,-500.0,0.00036438,2]
[341302629,1730746259628,-500.0,0.00036438,2]
[341302630,1730746259638,-500.0,0.00036438,2]
[341302631,1730746259647,-500.0,0.00036438,2]
[341302632,1730746259657,-775.76,0.00036438,2]
[341302633,1730746259667,-500.0,0.00036438,2]
[341302634,1730746259677,-1789.59,0.00036438,2]
[341302635,1730746259687,-727.78,0.00036438,2]
[341302636,1730746259696,-1276.2,0.00036438,2]
[341302637,1730746259707,-500.0,0.00036438,2]
[341302638,1730746259717,-151.76342527,0.00036601,2]
[341302639,1730746259852,-220.20988836,0.00036712,2]
[341302640,1730746259863,-500.0,0.00036712,2]
[341302641,1730746259873,-500.0,0.00036712,2]
[341302642,1730746259883,-171.25777976,0.00036712,2]
[341302643,1730746259892,-500.0,0.00036712,2]
[341302644,1730746259902,-775.76,0.00036712,2]
[341302645,1730746259912,-339.84999999,0.00036712,2]
[341302646,1730746259921,-1789.59,0.00036712,2]
[341302647,1730746259931,-727.78,0.00036712,2]
[341302648,1730746259940,-1276.2,0.00036712,2]
[341302649,1730746259950,-500.0,0.00036712,2]
[341302650,1730746259961,-679.41,0.00036795,2]
[341302651,1730746259970,-500.0,0.00036986,30]
[341302652,1730746259981,-500.0,0.00036986,2]
[341302653,1730746259991,-500.0,0.00036986,2]
[341302654,1730746260001,-500.0,0.00036986,2]
[341302655,1730746260011,-775.76,0.00036986,2]
[341302656,1730746260021,-1789.59,0.00036986,2]
[341302657,1730746260030,-727.78,0.00036986,2]
[341302658,1730746260040,-1276.2,0.00036986,2]
[341302659,1730746260049,-500.0,0.00036986,2]
[341302660,1730746260059,-499.64,0.00037,2]
[341302661,1730746260069,-650.0,0.00037,2]
[341302662,1730746260079,-152.0,0.0003712,3]
[341302663,1730746260089,-448.26808618,0.000372,103]
[341302664,1730746260099,-448.26808617,0.000372,103]
[341302665,1730746260108,-448.26808617,0.000372,103]
[341302666,1730746260118,-448.26808617,0.000372,103]
[341302667,1730746260127,-500.0,0.0003726,2]
[341302668,1730746260137,-500.0,0.0003726,2]
[341302669,1730746260147,-500.0,0.0003726,2]
[341302670,1730746260156,-775.76,0.0003726,2]
[341302671,1730746260166,-1789.59,0.0003726,2]
[341302672,1730746260176,-727.78,0.0003726,2]
[341302673,1730746260186,-1276.2,0.0003726,2]
[341302674,1730746260196,-500.0,0.0003726,2]
[341302675,1730746260207,-307.758,0.00037378,2]
[341302676,1730746260218,-290.088,0.00037378,2]
[341302677,1730746260231,-500.0,0.00037534,2]
[341302678,1730746260241,-500.0,0.00037534,2]
[341302679,1730746260251,-500.0,0.00037534,2]
[341302680,1730746260261,-775.76,0.00037534,2]
[341302681,1730746260270,-1789.59,0.00037534,2]
[341302682,1730746260280,-727.78,0.00037534,2]
[341302683,1730746260290,-1276.2,0.00037534,2]
[341302684,1730746260302,-500.0,0.00037534,2]
[341302685,1730746260312,-264.50975,0.00037546,2]
[341302686,1730746260321,-202.981,0.00037582,2]
[341302687,1730746260329,-1682.9275419,0.00037627,15]
[341302688,1730746260338,-202.52,0.00037651,120]
[341302689,1730746260348,-500.0,0.00037808,2]
[341302690,1730746260358,-500.0,0.00037808,2]
[341302691,1730746260368,-500.0,0.00037808,2]
[341302692,1730746260378,-775.76,0.00037808,2]
[341302693,1730746260389,-1789.59,0.00037808,2]
[341302694,1730746260399,-727.78,0.00037808,2]
[341302695,1730746260410,-1276.2,0.00037808,2]
[341302696,1730746260420,-500.0,0.00037808,2]
[341302697,1730746260430,-500.0,0.00038082,2]
[341302698,1730746260442,-500.0,0.00038082,2]
[341302699,1730746260452,-283.03,0.00038082,2]
[341302700,1730746260462,-775.76,0.00038082,2]
[341302701,1730746260472,-1789.59,0.00038082,2]
[341302702,1730746260481,-727.78,0.00038082,2]
[341302703,1730746260490,-1276.2,0.00038082,2]
[341302704,1730746260500,-500.0,0.00038082,2]
[341302705,1730746260510,-153.27,0.000382,31]
[341302706,1730746260520,-153.27,0.000382,31]
[341302707,1730746260530,-421.382,0.00038354,2]
[341302708,1730746260540,-500.0,0.00038356,2]
[341302709,1730746260549,-166.20816612,0.00038356,2]
[341302710,1730746260558,-775.76,0.00038356,2]
[341302711,1730746260567,-1789.59,0.00038356,2]
[341302712,1730746260576,-727.78,0.00038356,2]
[341302713,1730746260585,-1276.2,0.00038356,2]
[341302714,1730746260595,-500.0,0.00038356,2]
[341302715,1730746260605,-633.36,0.00038356,2]
[341302716,1730746260615,-500.0,0.0003863,2]
[341302717,1730746260624,-775.76,0.0003863,2]
[341302718,1730746260634,-1789.59,0.0003863,2]
[341302719,1730746260643,-727.78,0.0003863,2]
[341302720,1730746260653,-1276.2,0.0003863,2]
[341302721,1730746260663,-500.0,0.0003863,2]
[341302722,1730746260672,-242.89835717,0.000388,30]
[341302723,1730746260682,-519.18000001,0.00038904,2]
[341302724,1730746260691,-775.76,0.00038904,2]
[341302725,1730746260701,-1789.59,0.00038904,2]
[341302726,1730746260713,-727.78,0.00038904,2]
[341302727,1730746260723,-1276.2,0.00038904,2]
[341302728,1730746260733,-248.9,0.00038904,2]
[341302729,1730746260742,-679.41,0.00039059,2]
[341302730,1730746260751,-597.70575,0.00039091,2]
[341302731,1730746260760,-160.55038261,0.00039146,2]
[341302732,1730746260770,-749.5,0.00039162,30]
[341302733,1730746260779,-775.82250397,0.00039178,2]
[341302734,1730746260789,-1789.71,0.00039178,2]
[341302735,1730746260799,-727.85290879,0.00039178,2]
[341302736,1730746260808,-1276.3,0.00039178,2]
[341302737,1730746260818,-152.0,0.0003923,4]
[341302738,1730746260827,-40199.84878653,0.000394,120]
[341302739,1730746260836,-2061.0,0.00039671,2]
[341302740,1730746260846,-155.96,0.00039671,2]
[341302741,1730746260856,-151.97,0.00039983,120]
[341302742,1730746260866,-213.70656543,0.0003999,120]
[341302743,1730746260875,-7397.29285571,0.0004,4]
[341302744,1730746260890,-39162.44395836,0.0004,4]
[341302745,1730746260899,-152.93,0.0004,2]
[341302746,1730746260908,-153.27,0.000401,31]
[341302747,1730746260918,-153.27,0.000401,31]
[341302748,1730746260929,-1682.9275419,0.00040313,15]
[341302749,1730746260938,-150.0,0.00040378,2]
[341302750,1730746260948,-206.46778832,0.0004077,30]
[341302751,1730746260961,-150.000001,0.000408,44]
[341302752,1730746260973,-500.0,0.00041095,2]
[341302753,1730746260982,-500.0,0.00041095,2]
[341302754,1730746260992,-500.0,0.00041095,2]
[341302755,1730746261002,-500.0,0.00041095,2]
[341302756,1730746261011,-500.0,0.00041095,2]
[341302757,1730746261020,-150.0,0.00041096,2]
[341302758,1730746261030,-157.0,0.00041096,2]
[341302759,1730746261039,-679.41,0.00041323,2]
[341302760,1730746261049,-152.0,0.00041341,5]
[341302761,1730746261058,-153.27,0.000419,31]
[341302762,1730746261067,-153.27,0.000419,31]
[341302763,1730746261077,-258.92,0.00041999,2]
[341302764,1730746261086,-153338.09013225,0.00042,30]
[341302765,1730746261096,-150.0,0.00042177,2]
[341302766,1730746261105,-153.0,0.00042762,31]
[341302767,1730746261115,-153.0,0.00042762,31]
[341302768,1730746261124,-153.0,0.00042762,31]
[341302769,1730746261133,-153.0,0.00042762,31]
[341302770,1730746261142,-153.0,0.00042762,31]
[341302771,1730746261150,-153.0,0.00042762,31]
[341302772,1730746261159,-153.0,0.00042762,31]
[341302773,1730746261169,-369.666146,0.00042773,15]
[341302774,1730746261178,-9445.66387616,0.000428,60]
[341302775,1730746261188,-229.0,0.000428,30]
[341302776,1730746261197,-153.0,0.00042806,31]
[341302777,1730746261208,-153.0,0.00042806,31]
[341302778,1730746261218,-153.0,0.00042806,31]
[341302779,1730746261232,-153.0,0.00042806,31]
[341302780,1730746261242,-999.0,0.00042956,120]
[341302781,1730746261251,-1622.35266842,0.00042957,5]
[341302782,1730746261260,-500.0,0.00042999,2]
[341302783,1730746261271,-167.36579568,0.00042999,2]
[341302784,1730746261280,-167.36579567,0.00043,2]
[341302785,1730746261289,-563.63634948,0.00043,120]
[341302786,1730746261301,-5044.20818654,0.00043,4]
[341302787,1730746261311,-250.0,0.00043,2]
[341302788,1730746261320,-10000.0,0.00043,3]
[341302789,1730746261330,-1682.9275419,0.00043,15]
[341302790,1730746261340,-448.26808617,0.00043,120]
[341302791,1730746261349,-160.55038261,0.00043,28]
[341302792,1730746261359,-167.36579567,0.00043,2]
[341302793,1730746261368,-32770.60387096,0.00043096,12]
[341302794,1730746261574,506.97509308,0.00018972,2]
[341302795,1730746261602,500.0,0.00018972,2]
[341302796,1730746261629,500.0,0.00018972,2]
[341302797,1730746261659,500.0,0.00018972,2]
[341302798,1730746261688,500.0,0.00018972,2]
[341302799,1730746261713,500.0,0.00018972,2]
[341302800,1730746261739,481.67204763,0.00018972,2]
[341302801,1730746261764,500.0,0.00018972,2]
[341302802,1730746261793,500.0,0.00018972,2]
[341302803,1730746261821,500.0,0.00018972,2]
[341302804,1730746261851,500.0,0.00018972,2]
[341302805,1730746261883,180.38947679,0.00018972,2]
[341302806,1730746261910,500.0,0.00018972,2]
[341302807,1730746261943,500.0,0.00018972,2]
[341302808,1730746261973,500.0,0.00018972,2]
[341302809,1730746262011,500.0,0.00018972,2]
[341302810,1730746262037,500.0,0.00018972,2]
[341302811,1730746262081,500.0,0.00018972,2]
[341302812,1730746262108,253.23307328,0.00018972,2]
[341302813,1730746262137,500.0,0.00018972,2]
[341302814,1730746262164,500.0,0.00018972,2]
[341302815,1730746262190,500.0,0.00018972,2]
[341302816,1730746262232,500.0,0.00018972,2]
[341302817,1730746262258,500.0,0.00018972,2]
[341302818,1730746262290,500.0,0.00018972,2]
[341302819,1730746262327,500.0,0.00018972,2]
[341302820,1730746262508,208.327,0.00015246,2]
[341302821,1730746263346,150.0,0.00017237,2]
[341302822,1730746263703,300.0,0.00018971,2]
[341302823,1730746263772,500.0,0.00018973,2]
[341302824,1730746298465,150.0,0.00018123,2]
[341302825,1730746700444,155.29,0.00015342,2]
[341302837,1730747250216,156.9,0.00015342,2]
[341302843,1730747432901,-250.0,0.00021,2]
[341302844,1730747432912,-213.52634003,0.00021384,2]
[341302845,1730747433092,-300.0,0.00023,2]
[341302846,1730747433102,-697.42878939,0.00024832,2]
[341302847,1730747433112,-500.0,0.00024932,2]
[341302848,1730747433121,-500.0,0.00024932,2]
[341302849,1730747433130,-500.0,0.00024932,2]
[341302850,1730747433140,-500.0,0.00024932,2]
[341302851,1730747433150,-1010.04,0.00024932,2]
[341302852,1730747433160,-7001.81988085,0.00024932,2]
[341302853,1730747433169,-350.0,0.00025,2]
[341302854,1730747433178,-3575.59,0.00025,2]
[341302855,1730747433188,-2380.25,0.00025,2]
[341302856,1730747433197,-269.82,0.00025,2]
[341302857,1730747433206,-7062.67,0.00025,2]
[341302858,1730747433215,-7856.77,0.00025,2]
[341302859,1730747433224,-1101.57,0.00025,2]
[341302860,1730747433233,-2103.0,0.000254,2]
[341302861,1730747433242,-662.34,0.000257,2]
[341302862,1730747433252,-208.327,0.00026511,2]
[341302863,1730747433262,-400.0,0.00027,2]
[341302864,1730747433271,-319.16,0.00027104,2]
[341302865,1730747433280,-2422.71,0.00027572,2]
[341302866,1730747433290,-152.78,0.00027618,2]
[341302867,1730747433299,-518.81,0.00027634,120]
[341302868,1730747433309,-1976.79,0.00027636,2]
[341302869,1730747433318,-159.94032615,0.00027725,2]
[341302870,1730747433327,-500.0,0.00027767,5]
[341302871,1730747433337,-662.34,0.00027964,2]
[341302872,1730747433346,-2422.71,0.00028015,2]
[341302873,1730747433355,-1233.82,0.00028043,2]
[341302874,1730747433364,-2622.06,0.00028079,2]
[341302875,1730747433373,-1055.27,0.00028128,2]
[341302876,1730747433383,-500.0,0.0002814,2]
[341302877,1730747433394,-170.07,0.00028141,2]
[341302878,1730747433403,-250.0,0.00028144,2]
[341302879,1730747433412,-22902.73,0.00028144,2]
[341302880,1730747433421,-250.0,0.00028154,2]
[341302881,1730747433431,-5579.5,0.00028161,2]
[341302882,1730747433440,-200.0,0.00028161,2]
[341302883,1730747433449,-319.16,0.00028174,2]
[341302884,1730747433458,-316.49,0.00028181,2]
[341302885,1730747433467,-2742.78,0.00028181,2]
[341302886,1730747433476,-1119.43,0.00028194,2]
[341302887,1730747433485,-706.83,0.000282,120]
[341302888,1730747433495,-1606.73,0.00028211,2]
[341302889,1730747433504,-200.0,0.00028217,2]
[341302890,1730747433513,-364.6,0.00028217,2]
[341302891,1730747433522,-487.71,0.00028262,30]
[341302892,1730747433531,-2000.0,0.00028266,2]
[341302893,1730747433541,-250.0,0.00028266,2]
[341302894,1730747433550,-1260.82,0.00028448,10]
[341302895,1730747433559,-500.0,0.00028457,2]
[341302896,1730747433568,-528.13700814,0.00028457,2]